[Event "FIDE World Rapid-ch Open 2018"]
[White "AL-Sayed, Mohammed"]
[Black "Smirin, Ilia"]
[Site "St. Petersburg"]
[Round "3.61"]
[Annotator "ChessBase"]
[Result "0-1"]
[Date "2018.12.26"]
[WhiteElo "2484"]
[BlackElo "2609"]
[PlyCount "66"]
[TimeControl "900+10"]

1. e4 {[%emt 0:0:0]} c5 {[%emt 0:0:12]} 2. Nf3 {[%emt 0:0:3]} e6 {[%emt 0:0:0]} 3. g3 {[%emt 0:0:8]} d5 {[%emt 0:0:14]} 4. exd5 {[%emt 0:0:25]} exd5 {[%emt 0:0:5]} 5. Bg2 {[%emt 0:0:5]} Qe7+ {[%emt 0:0:3]} 6. Kf1 {[%emt 0:0:9]
} Nc6 {[%emt 0:0:11]} 7. Nc3 {[%emt 0:1:5]} Nf6 {[%emt 0:0:0]} 8. d3 {[%emt 0:0:3]} d4 {[%emt 0:0:26]} 9. Nb5 {[%emt 0:0:33]} a6 {[%emt 0:0:45]
} 10. Na3 {[%emt 0:0:2]} Qd8 {[%emt 0:1:25]} 11. Bg5 {[%emt 0:0:0]} Be7 {[%emt 0:0:14]} 12. Bxf6 {[%emt 0:0:8]} Bxf6 {[%emt 0:0:4]} 13. Qe2+ {[%emt 0:0:4]} Qe7 {[%emt 0:0:58]} 14. Qxe7+ {[%emt 0:0:30]} Kxe7 {[%emt 0:0:37]} 15. Nd2 {[%emt 0:0:35]} Kd7 {[%emt 0:1:26]} 16. Nac4 {[%emt 0:4:35]
} Kc7 {[%emt 0:0:9]} 17. a4 {[%emt 0:0:8]} Be6 {[%emt 0:0:0]} 18. a5 {[%emt 0:0:54]} Rad8 {[%emt 0:0:14]} 19. Bf3 {[%emt 0:0:26]} Nb4 {[%emt 0:0:43]} 20. Rc1 {[%emt 0:0:2]} Bg5 {[%emt 0:0:5]} 21. h4 {[%emt 0:0:0]} Bh6 {[%emt 0:0:4]} 22. Rd1 {[%emt 0:0:11]} Nxc2 {[%emt 0:1:11]} 23. Ne4 {[%emt 0:0:1]} Bxc4 {[%emt 0:0:9]} 24. dxc4 {[%emt 0:0:2]} b6 {[%emt 0:0:4]
} 25. Kg2 {[%emt 0:0:34]} f5 {[%emt 0:0:37]} 26. axb6+ {[%emt 0:0:1]
} Kxb6 {[%emt 0:0:2]} 27. Ng5 {[%emt 0:0:5]} Bxg5 {[%emt 0:0:0]} 28. hxg5 {[%emt 0:0:1]} d3 {[%emt 0:0:48]} 29. g6 {[%emt 0:1:16]} hxg6 {[%emt 0:0:14]} 30. Rxd3 {[%emt 0:1:29]} Rxd3 {[%emt 0:0:13]} 31. Rxh8 {[%emt 0:0:2]} Ne1+ {[%emt 0:0:2]} 32. Kf1 {[%emt 0:0:0]} Nxf3 {[%emt 0:0:0]} 33. Ke2 Rb3 0-1

[Event "FIDE World Rapid-ch Open 2018"]
[White "Jumabayev, Rinat"]
[Black "Van Foreest, Jorden"]
[Site "St. Petersburg"]
[Round "3.62"]
[Annotator "ChessBase"]
[Result "1/2-1/2"]
[Date "2018.12.26"]
[WhiteElo "2602"]
[BlackElo "2614"]
[PlyCount "136"]
[TimeControl "900+10"]

1. c4 {[%emt 0:0:0]} c6 {[%emt 0:0:2]} 2. e4 {[%emt 0:0:0]} d5 {[%emt 0:0:0]} 3. exd5 {[%emt 0:0:2]} cxd5 {[%emt 0:0:3]} 4. cxd5 {[%emt 0:0:5]} Nf6 {[%emt 0:0:6]} 5. Nc3 {[%emt 0:0:3]} Nxd5 {[%emt 0:0:5]} 6. d4 {[%emt 0:0:10]
} Nc6 {[%emt 0:0:5]} 7. Nf3 {[%emt 0:0:4]} Bf5 {[%emt 0:0:0]} 8. Bb5 {[%emt 0:1:55]} e6 {[%emt 0:0:3]} 9. Ne5 {[%emt 0:0:18]} Ndb4 {[%emt 0:1:30]
} 10. 0-0 {[%emt 0:0:12]} a6 {[%emt 0:0:3]} 11. Nxc6 {[%emt 0:0:0]} Nxc6 {[%emt 0:0:6]} 12. Ba4 {[%emt 0:2:29]} b5 {[%emt 0:2:58]} 13. d5 {[%emt 0:0:4]} bxa4 {[%emt 0:0:5]} 14. Qxa4 {[%emt 0:0:7]} Rc8 {[%emt 0:0:53]
} 15. dxc6 {[%emt 0:0:6]} Bd6 {[%emt 0:2:27]} 16. Bf4 {[%emt 0:3:56]
} Bxf4 {[%emt 0:0:19]} 17. Qxf4 {[%emt 0:0:1]} 0-0 {[%emt 0:0:0]} 18. Rad1 {[%emt 0:0:30]} Qb6 {[%emt 0:0:19]} 19. Rd2 {[%emt 0:0:39]} Rxc6 {[%emt 0:0:33]} 20. Rfd1 {[%emt 0:0:2]} h6 {[%emt 0:0:3]} 21. h3 {[%emt 0:0:2]
} Rfc8 {[%emt 0:0:41]} 22. Nd5 {[%emt 0:1:32]} exd5 {[%emt 0:0:0]} 23. Qxf5 {[%emt 0:0:2]} d4 {[%emt 0:0:2]} 24. Rxd4 {[%emt 0:0:53]} g6 {[%emt 0:0:12]} 25. Qe5 {[%emt 0:0:53]} Re6 {[%emt 0:0:2]} 26. Qf4 {[%emt 0:0:2]
} Qxb2 {[%emt 0:1:31]} 27. Qxh6 {[%emt 0:0:2]} Re1+ {[%emt 0:0:0]} 28. Rxe1 {[%emt 0:0:16]} Qxd4 {[%emt 0:0:2]} 29. h4 {[%emt 0:0:57]} Qd5 {[%emt 0:0:1]} 30. a3 {[%emt 0:0:11]} Qa5 {[%emt 0:1:56]} 31. Re3 {[%emt 0:0:30]
} Qf5 {[%emt 0:0:55]} 32. Rf3 {[%emt 0:1:6]} Qg4 {[%emt 0:0:0]} 33. Qf4 {[%emt 0:1:52]} Qxf4 {[%emt 0:0:2]} 34. Rxf4 {[%emt 0:0:0]} Rc5 {[%emt 0:0:1]} 35. Kh2 {[%emt 0:0:19]} Kg7 {[%emt 0:0:14]} 36. f3 {[%emt 0:0:2]
} a5 {[%emt 0:0:14]} 37. Kg3 {[%emt 0:0:20]} Rc3 {[%emt 0:0:0]} 38. Ra4 {[%emt 0:0:1]} Rc5 {[%emt 0:0:1]} 39. Kf4 {[%emt 0:0:4]} Kf6 {[%emt 0:0:1]} 40. g4 {[%emt 0:0:3]} Ke6 {[%emt 0:0:8]} 41. Re4+ {[%emt 0:0:13]
} Kf6 {[%emt 0:0:16]} 42. g5+ {[%emt 0:0:29]} Kg7 {[%emt 0:0:0]} 43. Rd4 {[%emt 0:0:1]} Rc3 {[%emt 0:0:33]} 44. Ra4 {[%emt 0:0:9]} Rc5 {[%emt 0:0:1]} 45. Ke4 {[%emt 0:0:10]} f6 {[%emt 0:0:9]} 46. f4 {[%emt 0:0:0]} Kf7 {[%emt 0:0:1]} 47. Rd4 {[%emt 0:0:31]} Ke6 {[%emt 0:0:12]} 48. gxf6 {[%emt 0:0:8]} Kxf6 {[%emt 0:0:2]} 49. Rd6+ {[%emt 0:0:3]} Kf7 {[%emt 0:0:2]
} 50. Rd5 {[%emt 0:0:1]} Rc4+ {[%emt 0:0:53]} 51. Ke5 {[%emt 0:0:1]
} Ra4 {[%emt 0:0:14]} 52. Rd7+ {[%emt 0:0:6]} Ke8 {[%emt 0:0:0]} 53. Rd3 {[%emt 0:0:14]} Kf7 {[%emt 0:0:27]} 54. Rc3 {[%emt 0:0:2]} Kg7 {[%emt 0:0:12]} 55. Rf3 {[%emt 0:0:43]} Kh6 {[%emt 0:0:9]} 56. Kf6 {[%emt 0:0:17]
} Rc4 {[%emt 0:0:4]} 57. f5 {[%emt 0:0:9]} gxf5 {[%emt 0:0:0]} 58. Rxf5 {[%emt 0:0:2]} Ra4 {[%emt 0:0:4]} 59. Rf3 {[%emt 0:0:2]} Rxh4 {[%emt 0:0:2]} 60. Kf5 {[%emt 0:0:6]} Kg7 {[%emt 0:0:4]} 61. Ke6 {[%emt 0:0:1]
} a4 {[%emt 0:0:6]} 62. Kd6 {[%emt 0:0:1]} Rg4 {[%emt 0:0:0]} 63. Kc6 {[%emt 0:0:2]} Rh4 {[%emt 0:0:3]} 64. Kb5 {[%emt 0:0:0]} Rg4 {[%emt 0:0:1]} 65. Ka5 {[%emt 0:0:3]} Rh4 {[%emt 0:0:27]} 66. Rf5 {[%emt 0:0:3]
} Kg6 {[%emt 0:0:0]} 67. Rf3 {[%emt 0:0:11]} Rg4 {[%emt 0:0:0]} 68. Kb5 {[%emt 0:0:0]} Kg7 {[%emt 0:0:4]} 1/2-1/2

[Event "FIDE World Rapid-ch Open 2018"]
[White "Anikonov, Dmitry"]
[Black "Miton, Kamil"]
[Site "St. Petersburg"]
[Round "3.63"]
[Annotator "ChessBase"]
[Result "0-1"]
[Date "2018.12.26"]
[WhiteElo "2371"]
[BlackElo "2588"]
[PlyCount "92"]
[TimeControl "900+10"]

1. d4 {[%emt 0:0:0]} Nf6 {[%emt 0:0:0]} 2. c4 {[%emt 0:0:0]} e6 {[%emt 0:0:0]} 3. g3 {[%emt 0:0:0]} d5 {[%emt 0:0:0]} 4. Nf3 {[%emt 0:0:0]} Bb4+ {[%emt 0:0:5]} 5. Bd2 {[%emt 0:0:0]} Be7 {[%emt 0:0:3]} 6. Bg2 {[%emt 0:0:0]} 0-0 {[%emt 0:0:4]} 7. 0-0 {[%emt 0:0:4]} Nbd7 {[%emt 0:0:5]} 8. Qc2 {[%emt 0:0:6]} c6 {[%emt 0:0:4]} 9. Rd1 {[%emt 0:0:8]} b6 {[%emt 0:0:0]} 10. b3 {[%emt 0:0:2]} Ba6 {[%emt 0:1:7]} 11. a4 {[%emt 0:0:1]} Bd6 {[%emt 0:1:19]} 12. Na3 {[%emt 0:4:29]} Qe7 {[%emt 0:0:29]} 13. Qb2 {[%emt 0:0:16]
} Rac8 {[%emt 0:3:51]} 14. Rdc1 {[%emt 0:1:22]} Ne4 {[%emt 0:0:0]} 15. Be1 {[%emt 0:0:14]} Bb4 {[%emt 0:1:31]} 16. Bxb4 {[%emt 0:1:38]} Qxb4 {[%emt 0:0:4]} 17. Nc2 {[%emt 0:0:2]} Qd6 {[%emt 0:0:25]} 18. Ne3 {[%emt 0:1:17]
} f5 {[%emt 0:1:54]} 19. Nd2 {[%emt 0:3:47]} c5 {[%emt 0:0:14]
} 20. dxc5 {[%emt 0:0:50]} bxc5 {[%emt 0:0:16]} 21. Nxe4 {[%emt 0:1:32]} fxe4 {[%emt 0:0:18]} 22. Rd1 {[%emt 0:0:3]} d4 {[%emt 0:0:3]} 23. Qc2 {[%emt 0:1:31]
} Nf6 {[%emt 0:0:29]} 24. Nf1 {[%emt 0:0:17]} Bb7 {[%emt 0:0:0]} 25. Nd2 {[%emt 0:0:25]} Qe5 {[%emt 0:0:24]} 26. Rf1 {[%emt 0:0:6]} Rc7 {[%emt 0:0:32]} 27. a5 {[%emt 0:0:6]} Rd7 {[%emt 0:0:26]} 28. a6 {[%emt 0:0:0]} Ba8 {[%emt 0:0:29]} 29. Rae1 {[%emt 0:0:20]} e3 {[%emt 0:1:2]} 30. f4 {[%emt 0:0:19]} Qh5 {[%emt 0:0:45]} 31. Ne4 {[%emt 0:0:27]} Bxe4 {[%emt 0:0:14]
} 32. Bxe4 {[%emt 0:0:2]} Ng4 {[%emt 0:0:2]} 33. h4 {[%emt 0:0:0]} Nf2 {[%emt 0:0:2]} 34. Bf3 {[%emt 0:0:9]} Qh6 {[%emt 0:0:32]} 35. Rxf2 {[%emt 0:0:15]} exf2+ {[%emt 0:0:3]} 36. Kxf2 {[%emt 0:0:2]} e5 {[%emt 0:0:8]
} 37. Kg2 {[%emt 0:0:43]} exf4 {[%emt 0:0:5]} 38. h5 {[%emt 0:0:0]} fxg3 {[%emt 0:0:31]} 39. Qe4 {[%emt 0:0:5]} Qf6 {[%emt 0:0:13]} 40. Rf1 {[%emt 0:0:7]} Re7 {[%emt 0:0:6]} 41. Qg4 {[%emt 0:0:3]} Kh8 {[%emt 0:0:20]
} 42. Qxg3 {[%emt 0:0:16]} Re5 {[%emt 0:0:11]} 43. Qh3 {[%emt 0:0:3]
} Rg5+ {[%emt 0:0:16]} 44. Kh1 {[%emt 0:0:0]} Rf5 {[%emt 0:0:0]} 45. Rg1 {[%emt 0:0:14]} Rf4 {[%emt 0:0:14]} 46. Kg2 {[%emt 0:0:19]} d3 {[%emt 0:0:3]} 0-1

[Event "FIDE World Rapid-ch Open 2018"]
[White "Bindrich, Falko"]
[Black "Tsoi, Dmitry"]
[Site "St. Petersburg"]
[Round "3.64"]
[Annotator "ChessBase"]
[Result "1-0"]
[Date "2018.12.26"]
[WhiteElo "2606"]
[BlackElo "2424"]
[PlyCount "51"]
[TimeControl "900+10"]

1. d4 {[%emt 0:0:0]} f5 {[%emt 0:0:0]} 2. g3 {[%emt 0:0:0]} Nf6 {[%emt 0:0:0]} 3. Bg2 {[%emt 0:0:0]} e6 {[%emt 0:0:0]} 4. c4 {[%emt 0:0:0]} d5 {[%emt 0:0:0]
} 5. Nh3 {[%emt 0:0:6]} c6 {[%emt 0:0:5]} 6. Qc2 {[%emt 0:0:0]} Be7 {[%emt 0:0:28]} 7. 0-0 {[%emt 0:0:5]} 0-0 {[%emt 0:0:10]} 8. Nd2 {[%emt 0:0:3]
} Ne4 {[%emt 0:0:10]} 9. f3 {[%emt 0:0:14]} Nxd2 {[%emt 0:0:0]} 10. Bxd2 {[%emt 0:0:1]} Bf6 {[%emt 0:0:6]} 11. e3 {[%emt 0:0:25]} Qd6 {[%emt 0:0:48]} 12. Rad1 {[%emt 0:0:46]} b6 {[%emt 0:0:21]} 13. e4 {[%emt 0:0:0]} Bxd4+ {[%emt 0:1:30]} 14. Kh1 {[%emt 0:0:6]} fxe4 {[%emt 0:0:11]} 15. fxe4 {[%emt 0:0:2]} Rxf1+ {[%emt 0:0:6]} 16. Rxf1 {[%emt 0:0:3]} dxc4 {[%emt 0:0:21]} 17. e5 {[%emt 0:0:54]} Bxe5 {[%emt 0:0:53]} 18. Be4 {[%emt 0:0:23]
} h6 {[%emt 0:0:35]} 19. Nf4 {[%emt 0:2:48]} Bxf4 {[%emt 0:0:0]} 20. Bxf4 {[%emt 0:0:41]} Qe7 {[%emt 0:0:15]} 21. Qd1 {[%emt 0:2:38]} e5 {[%emt 0:3:0]} 22. Bg5 {[%emt 0:1:18]} Qe8 {[%emt 0:1:24]} 23. Qd6 {[%emt 0:0:49]
} Bh3 {[%emt 0:5:0]} 24. Bg6 {[%emt 0:0:25]} Qc8 {[%emt 0:0:0]} 25. Bf7+ {[%emt 0:0:37]} Kh8 {[%emt 0:0:1]} 26. Rf6 {[%emt 0:0:7]} 1-0

[Event "FIDE World Rapid-ch Open 2018"]
[White "Zubritskiy, Artyom"]
[Black "Bosiocic, Marin"]
[Site "St. Petersburg"]
[Round "3.65"]
[Annotator "ChessBase"]
[Result "0-1"]
[Date "2018.12.26"]
[WhiteElo "2442"]
[BlackElo "2599"]
[PlyCount "36"]
[TimeControl "900+10"]

1. c4 {[%emt 0:0:0]} e5 {[%emt 0:0:0]} 2. g3 {[%emt 0:0:0]} Nf6 {[%emt 0:0:0]} 3. Bg2 {[%emt 0:0:0]} c6 {[%emt 0:0:0]} 4. d4 {[%emt 0:0:0]} e4 {[%emt 0:0:0]
} 5. Nc3 {[%emt 0:0:52]} d5 {[%emt 0:0:2]} 6. f3 {[%emt 0:0:0]} Bb4 {[%emt 0:0:19]} 7. Qb3 {[%emt 0:5:57]} Na6 {[%emt 0:1:5]} 8. cxd5 {[%emt 0:0:12]} Qxd5 {[%emt 0:0:31]} 9. fxe4 {[%emt 0:4:23]} Qxd4 {[%emt 0:0:0]} 10. Nf3 {[%emt 0:0:6]} Qb6 {[%emt 0:0:16]} 11. Bd2 {[%emt 0:1:32]} Be6 {[%emt 0:0:41]} 12. Qc2 {[%emt 0:0:1]} Ng4 {[%emt 0:0:9]} 13. 0-0-0 {[%emt 0:0:48]
} Nf2 {[%emt 0:0:11]} 14. Ng5 {[%emt 0:2:18]} Nxh1 {[%emt 0:0:0]} 15. Nxe6 {[%emt 0:0:6]} fxe6 {[%emt 0:0:2]} 16. a3 {[%emt 0:0:31]} Nf2 {[%emt 0:2:41]} 17. axb4 {[%emt 0:0:10]} Nxd1 {[%emt 0:0:7]} 18. Nxd1 {[%emt 0:0:13]
} 0-0-0 {[%emt 0:0:22]} 0-1

[Event "FIDE World Rapid-ch Open 2018"]
[White "Yakubboev, Nodirbek"]
[Black "Gareyev, Timur"]
[Site "St. Petersburg"]
[Round "3.66"]
[Annotator "ChessBase"]
[Result "1/2-1/2"]
[Date "2018.12.26"]
[WhiteElo "2556"]
[BlackElo "2569"]
[PlyCount "107"]
[TimeControl "900+10"]

1. d4 {[%emt 0:0:0]} Nf6 {[%emt 0:1:13]} 2. c4 {[%emt 0:0:5]} e6 {[%emt 0:0:0]} 3. g3 {[%emt 0:0:9]} Bb4+ {[%emt 0:0:3]} 4. Bd2 {[%emt 0:0:2]} a5 {[%emt 0:0:2]} 5. Bg2 {[%emt 0:0:6]} 0-0 {[%emt 0:0:2]} 6. e4 {[%emt 0:0:0]} d6 {[%emt 0:0:5]} 7. Ne2 {[%emt 0:0:5]} e5 {[%emt 0:0:2]} 8. 0-0 {[%emt 0:0:28]} exd4 {[%emt 0:0:21]} 9. Nxd4 {[%emt 0:0:15]} Nc6 {[%emt 0:0:0]} 10. Bc3 {[%emt 0:1:22]} Bg4 {[%emt 0:0:18]} 11. Qd2 {[%emt 0:1:31]} Nxd4 {[%emt 0:3:28]} 12. Qxd4 {[%emt 0:0:26]} Bc5 {[%emt 0:0:4]} 13. Qd3 {[%emt 0:0:45]
} Nd7 {[%emt 0:0:10]} 14. h3 {[%emt 0:1:48]} Be6 {[%emt 0:0:0]} 15. Nd2 {[%emt 0:0:52]} Ne5 {[%emt 0:0:33]} 16. Qe2 {[%emt 0:0:5]} Nc6 {[%emt 0:0:13]} 17. Kh2 {[%emt 0:0:22]} Bb4 {[%emt 0:0:20]} 18. Rac1 {[%emt 0:1:51]
} Re8 {[%emt 0:0:59]} 19. a3 {[%emt 0:0:55]} Bxc3 {[%emt 0:0:0]} 20. Rxc3 {[%emt 0:0:2]} a4 {[%emt 0:0:1]} 21. f4 {[%emt 0:0:21]} f6 {[%emt 0:0:12]
} 22. Rd1 {[%emt 0:1:22]} Qe7 {[%emt 0:0:20]} 23. Nf1 {[%emt 0:0:0]} Na5 {[%emt 0:0:31]} 24. Nd2 {[%emt 0:0:39]} Ra6 {[%emt 0:0:31]} 25. Rdc1 {[%emt 0:0:36]} Rb6 {[%emt 0:0:23]} 26. R1c2 {[%emt 0:0:2]} c5 {[%emt 0:0:34]
} 27. Qd1 {[%emt 0:0:29]} Qf7 {[%emt 0:0:25]} 28. Bf1 {[%emt 0:0:0]} Bd7 {[%emt 0:0:34]} 29. Re3 {[%emt 0:0:28]} Bc6 {[%emt 0:0:40]} 30. Qe1 {[%emt 0:0:4]} Ra6 {[%emt 0:1:20]} 31. Nf3 {[%emt 0:1:16]} Nb3 {[%emt 0:0:3]
} 32. Bd3 {[%emt 0:0:1]} Raa8 {[%emt 0:0:29]} 33. Qc3 {[%emt 0:0:36]
} Rad8 {[%emt 0:1:18]} 34. Rce2 {[%emt 0:0:5]} b6 {[%emt 0:0:0]} 35. Bc2 {[%emt 0:0:19]} Na5 {[%emt 0:0:11]} 36. Nd2 {[%emt 0:0:4]} Re7 {[%emt 0:0:16]} 37. Re1 {[%emt 0:0:19]} Rde8 {[%emt 0:0:14]} 38. Bd1 {[%emt 0:0:22]
} Rd8 {[%emt 0:0:34]} 39. Bc2 {[%emt 0:0:10]} Qe8 {[%emt 0:0:0]} 40. Nf3 {[%emt 0:0:28]} Qf7 {[%emt 0:0:48]} 41. Nd2 {[%emt 0:0:16]} Qe6 {[%emt 0:0:27]} 42. Qd3 {[%emt 0:0:4]} g6 {[%emt 0:0:47]} 43. e5 {[%emt 0:0:0]} Rde8 {[%emt 0:0:47]} 44. f5 {[%emt 0:1:22]} gxf5 {[%emt 0:0:24]} 45. exd6 {[%emt 0:0:15]} Qxe3 {[%emt 0:0:5]} 46. Rxe3 {[%emt 0:0:6]} Rxe3 {[%emt 0:0:1]
} 47. Qxf5 {[%emt 0:0:2]} Re2+ {[%emt 0:1:2]} 48. Kg1 {[%emt 0:0:1]
} Re1+ {[%emt 0:0:8]} 49. Nf1 {[%emt 0:0:2]} R8e2 {[%emt 0:0:0]} 50. Qxh7+ {[%emt 0:0:3]} Kf8 {[%emt 0:0:1]} 51. Qh8+ {[%emt 0:0:0]} Kf7 {[%emt 0:0:2]} 52. Qh7+ {[%emt 0:0:15]} Kf8 {[%emt 0:0:15]} 53. Qh8+ {[%emt 0:0:13]} Kf7 {[%emt 0:0:1]} 54. Qh7+ {[%emt 0:0:17]} 1/2-1/2

[Event "FIDE World Rapid-ch Open 2018"]
[White "Indjic, Aleksandar"]
[Black "Ovchinnikov, Vsevolod"]
[Site "St. Petersburg"]
[Round "3.67"]
[Annotator "ChessBase"]
[Result "1/2-1/2"]
[Date "2018.12.26"]
[WhiteElo "2620"]
[BlackElo "2329"]
[PlyCount "92"]
[TimeControl "900+10"]

1. d4 {[%emt 0:0:0]} Nf6 {[%emt 0:0:0]} 2. Nf3 {[%emt 0:0:0]} g6 {[%emt 0:0:0]
} 3. Bg5 {[%emt 0:0:0]} Bg7 {[%emt 0:0:0]} 4. Nbd2 {[%emt 0:0:0]} d5 {[%emt 0:0:0]} 5. e3 {[%emt 0:0:8]} 0-0 {[%emt 0:0:28]} 6. h3 {[%emt 0:0:11]
} c5 {[%emt 0:0:14]} 7. c3 {[%emt 0:0:4]} b6 {[%emt 0:0:7]} 8. Be2 {[%emt 0:0:4]} h6 {[%emt 0:0:22]} 9. Bf4 {[%emt 0:0:2]} Ba6 {[%emt 0:0:17]
} 10. Bxa6 {[%emt 0:0:6]} Nxa6 {[%emt 0:0:2]} 11. 0-0 {[%emt 0:0:14]
} Qc8 {[%emt 0:1:56]} 12. a4 {[%emt 0:0:17]} Qb7 {[%emt 0:0:0]} 13. Qb3 {[%emt 0:0:10]} Rfd8 {[%emt 0:1:27]} 14. Bg3 {[%emt 0:0:59]} e6 {[%emt 0:0:26]} 15. Ne5 {[%emt 0:0:31]} Rac8 {[%emt 0:1:23]} 16. Bh4 {[%emt 0:1:12]
} g5 {[%emt 0:5:26]} 17. Bg3 {[%emt 0:0:2]} Nh5 {[%emt 0:0:0]} 18. Bh2 {[%emt 0:0:5]} f6 {[%emt 0:0:9]} 19. Nef3 {[%emt 0:0:13]} Bf8 {[%emt 0:0:12]} 20. Rfe1 {[%emt 0:2:51]} Ng7 {[%emt 0:0:8]} 21. Qc2 {[%emt 0:0:18]
} Nb8 {[%emt 0:2:38]} 22. a5 {[%emt 0:0:29]} b5 {[%emt 0:0:32]
} 23. a6 {[%emt 0:0:2]} Qd7 {[%emt 0:0:37]} 24. Qd3 {[%emt 0:0:24]} b4 {[%emt 0:0:31]
} 25. Ra5 {[%emt 0:4:19]} c4 {[%emt 0:0:35]} 26. Qb1 {[%emt 0:0:0]} Rc6 {[%emt 0:0:14]} 27. Qa2 {[%emt 0:0:42]} b3 {[%emt 0:0:11]} 28. Qa1 {[%emt 0:0:31]} Rb6 {[%emt 0:0:7]} 29. e4 {[%emt 0:0:9]} Nc6 {[%emt 0:0:0]} 30. Ra4 {[%emt 0:0:5]} Rc8 {[%emt 0:0:22]} 31. Nf1 {[%emt 0:0:34]} Ne7 {[%emt 0:0:10]} 32. Ne3 {[%emt 0:0:12]} Rcc6 {[%emt 0:0:10]} 33. Ng4 {[%emt 0:0:3]
} Ne8 {[%emt 0:0:4]} 34. e5 {[%emt 0:1:9]} f5 {[%emt 0:0:1]
} 35. Nf6+ {[%emt 0:0:1]} Nxf6 {[%emt 0:0:2]} 36. exf6 {[%emt 0:0:1]} Ng6 {[%emt 0:0:1]} 37. h4 {[%emt 0:0:2]} gxh4 {[%emt 0:0:19]} 38. Qd1 {[%emt 0:1:16]
} Qf7 {[%emt 0:0:8]} 39. Ne5 {[%emt 0:0:58]} Nxe5 {[%emt 0:0:0]} 40. Bxe5 {[%emt 0:0:4]} Rxa6 {[%emt 0:0:15]} 41. Qa1 {[%emt 0:0:5]} Qb7 {[%emt 0:0:7]} 42. Rxa6 {[%emt 0:1:8]} Rxa6 {[%emt 0:0:1]} 43. Qd1 {[%emt 0:0:1]
} Qf7 {[%emt 0:0:5]} 44. g3 {[%emt 0:0:1]} hxg3 {[%emt 0:0:0]} 45. Re3 {[%emt 0:0:13]} gxf2+ {[%emt 0:0:19]} 46. Kxf2 {[%emt 0:0:1]} Kh7 {[%emt 0:0:5]} 1/2-1/2

[Event "FIDE World Rapid-ch Open 2018"]
[White "Tang, Andrew"]
[Black "Yuffa, Daniil"]
[Site "St. Petersburg"]
[Round "3.68"]
[Annotator "ChessBase"]
[Result "1-0"]
[Date "2018.12.26"]
[WhiteElo "2487"]
[BlackElo "2572"]
[PlyCount "75"]
[TimeControl "900+10"]

1. d4 {[%emt 0:0:0]} d5 {[%emt 0:0:2]} 2. Bf4 {[%emt 0:0:0]} Nf6 {[%emt 0:0:2]
} 3. e3 {[%emt 0:0:0]} c5 {[%emt 0:0:2]} 4. dxc5 {[%emt 0:0:0]} Nc6 {[%emt 0:0:5]} 5. Bb5 {[%emt 0:0:3]} Qa5+ {[%emt 0:0:29]} 6. Nc3 {[%emt 0:0:2]} Bg4 {[%emt 0:2:31]} 7. Qd4 {[%emt 0:0:56]} e6 {[%emt 0:0:0]} 8. Nf3 {[%emt 0:1:39]} Bxf3 {[%emt 0:0:51]} 9. gxf3 {[%emt 0:0:2]} Nd7 {[%emt 0:0:13]} 10. Bxc6 {[%emt 0:0:38]} bxc6 {[%emt 0:0:3]} 11. b4 {[%emt 0:0:13]
} Qd8 {[%emt 0:0:42]} 12. Rb1 {[%emt 0:2:46]} Be7 {[%emt 0:0:0]} 13. Ne2 {[%emt 0:0:33]} Bf6 {[%emt 0:0:20]} 14. Qd3 {[%emt 0:0:4]} e5 {[%emt 0:0:12]} 15. Bg3 {[%emt 0:0:4]} h5 {[%emt 0:0:10]} 16. h3 {[%emt 0:0:0]} a5 {[%emt 0:1:6]} 17. a3 {[%emt 0:0:21]} axb4 {[%emt 0:1:1]} 18. axb4 {[%emt 0:0:2]} Nf8 {[%emt 0:1:36]} 19. c4 {[%emt 0:0:41]} h4 {[%emt 0:0:0]} 20. Bh2 {[%emt 0:0:3]} Ne6 {[%emt 0:0:23]} 21. cxd5 {[%emt 0:0:18]} cxd5 {[%emt 0:1:7]} 22. Nc3 {[%emt 0:3:42]} Ra3 {[%emt 0:0:53]} 23. Rd1 {[%emt 0:0:35]
} 0-0 {[%emt 0:0:20]} 24. Qc2 {[%emt 0:0:9]} Ng5 {[%emt 0:0:0]} 25. Nxd5 {[%emt 0:0:18]} Nxf3+ {[%emt 0:0:23]} 26. Kf1 {[%emt 0:0:2]} Qc8 {[%emt 0:1:46]} 27. Kg2 {[%emt 0:0:9]} Ng5 {[%emt 0:0:9]} 28. Bxe5 {[%emt 0:0:12]
} Bd8 {[%emt 0:0:35]} 29. c6 {[%emt 0:1:27]} Qe6 {[%emt 0:0:0]} 30. c7 {[%emt 0:1:28]} Bxc7 {[%emt 0:0:1]} 31. Bxc7 {[%emt 0:0:2]} Re8 {[%emt 0:0:47]} 32. Nf4 {[%emt 0:0:17]} Qc8 {[%emt 0:0:11]} 33. Qc6 {[%emt 0:0:57]
} Kh7 {[%emt 0:0:52]} 34. Rd5 {[%emt 0:0:32]} f6 {[%emt 0:0:0]} 35. Rhd1 {[%emt 0:0:26]} Ra6 {[%emt 0:0:19]} 36. Qc2+ {[%emt 0:0:17]} Ne4 {[%emt 0:0:10]} 37. Rh5+ {[%emt 0:0:14]} Kg8 {[%emt 0:0:3]} 38. Qc4+ {[%emt 0:0:4]
} 1-0

[Event "FIDE World Rapid-ch Open 2018"]
[White "Zvjaginsev, Vadim"]
[Black "Vorotnikov, Vladislav V"]
[Site "St. Petersburg"]
[Round "3.69"]
[Annotator "ChessBase"]
[Result "0-1"]
[Date "2018.12.26"]
[WhiteElo "2642"]
[BlackElo "2417"]
[PlyCount "68"]
[TimeControl "900+10"]

1. Nf3 {[%emt 0:0:0]} d6 {[%emt 0:0:0]} 2. d4 {[%emt 0:0:1]} Nf6 {[%emt 0:0:4]
} 3. Nc3 {[%emt 0:0:10]} Bf5 {[%emt 0:0:24]} 4. Bg5 {[%emt 0:0:0]} Ne4 {[%emt 0:1:14]} 5. Nxe4 {[%emt 0:0:8]} Bxe4 {[%emt 0:0:2]} 6. Nd2 {[%emt 0:0:21]} Bg6 {[%emt 0:0:8]} 7. e4 {[%emt 0:0:16]} c6 {[%emt 0:0:0]} 8. c3 {[%emt 0:0:41]} Qa5 {[%emt 0:1:2]} 9. h4 {[%emt 0:0:16]} h6 {[%emt 0:0:16]
} 10. Be3 {[%emt 0:0:9]} e6 {[%emt 0:0:39]} 11. Qb3 {[%emt 0:0:0]} Qc7 {[%emt 0:0:37]} 12. h5 {[%emt 0:1:27]} Bh7 {[%emt 0:0:2]} 13. d5 {[%emt 0:1:16]} exd5 {[%emt 0:2:52]} 14. exd5 {[%emt 0:0:2]} c5 {[%emt 0:0:3]
} 15. Be2 {[%emt 0:2:4]} Be7 {[%emt 0:0:5]} 16. Qa4+ {[%emt 0:1:15]
} Nd7 {[%emt 0:0:9]} 17. Qg4 {[%emt 0:0:13]} Bf6 {[%emt 0:0:0]} 18. 0-0 {[%emt 0:0:15]} Ne5 {[%emt 0:1:10]} 19. Qg3 {[%emt 0:0:12]} 0-0-0 {[%emt 0:0:42]} 20. a4 {[%emt 0:0:30]} Rde8 {[%emt 0:1:11]} 21. a5 {[%emt 0:0:9]
} Rhg8 {[%emt 0:0:39]} 22. b4 {[%emt 0:0:23]} Nd3 {[%emt 0:0:0]} 23. Nc4 {[%emt 0:1:4]} Rd8 {[%emt 0:0:33]} 24. b5 {[%emt 0:1:6]} Qe7 {[%emt 0:1:18]} 25. Rad1 {[%emt 0:1:56]} Ne5 {[%emt 0:0:12]} 26. Na3 {[%emt 0:0:33]
} g5 {[%emt 0:0:45]} 27. hxg6 {[%emt 0:0:13]} Bxg6 {[%emt 0:0:0]} 28. f4 {[%emt 0:0:14]} Bf5 {[%emt 0:0:17]} 29. Qf2 {[%emt 0:0:6]} Ng4 {[%emt 0:0:5]} 30. Bxg4 {[%emt 0:0:2]} Rxg4 {[%emt 0:0:6]} 31. Qf3 {[%emt 0:0:49]
} Rdg8 {[%emt 0:0:6]} 32. Rf2 {[%emt 0:0:5]} Rg3 {[%emt 0:0:0]} 33. Qh5 {[%emt 0:0:2]} Bg4 {[%emt 0:0:13]} 34. Qxh6 {[%emt 0:0:4]} Rh8 {[%emt 0:0:20]} 0-1